bitfinex-derivatives/quotes_BTCF0:USTF0_20250211
["timestamp","ask_amount","ask_price","bid_price","bid_amount"]
[1739254408414,0.2034848,98273.0,98271.0,0.2034868]
[1739254408598,0.2034848,98273.0,98271.0,0.2044868]
[1739254408799,0.2044848,98273.0,98271.0,0.2044868]
[1739254409609,0.2044848,98273.0,98271.0,0.2094868]
[1739254413312,0.2044848,98273.0,98271.0,0.006]
[1739254431720,0.001,98273.0,98271.0,0.006]
[1739254431921,0.001,98273.0,98271.0,0.2094866]
[1739254435126,0.001,98273.0,98271.0,0.39262999]
[1739254437330,0.001,98273.0,98271.0,0.40271975]
[1739254437835,0.2044838,98273.0,98271.0,0.39262999]
[1739254438022,0.2044838,98273.0,98271.0,0.18914339]
[1739254439030,0.2044838,98273.0,98272.0,0.18314339]
[1739254440220,0.2034838,98273.0,98272.0,0.18314339]
[1739254440425,0.5652838,98273.0,98272.0,0.18714339]
[1739254440629,0.5652838,98273.0,98272.0,0.18814339]
[1739254443130,0.5652838,98273.0,98272.0,0.005]
[1739254443736,0.7831838,98273.0,98272.0,0.005]
[1739254445126,0.5797,98273.0,98265.0,0.18314339]
[1739254445323,0.2034978,98266.0,98265.0,0.18314339]
[1739254447133,0.2034978,98266.0,98265.0,0.18614339]
[1739254447332,0.2034978,98266.0,98265.0,0.003]
[1739254447728,0.2034978,98266.0,98265.0,0.006]
[1739254448537,0.2044978,98266.0,98265.0,0.006]
[1739254449135,0.21473336,98266.0,98265.0,0.006]
[1739254449725,0.43263336,98266.0,98265.0,0.006]
[1739254451034,0.2035351,98248.0,98247.0,0.18314339]
[1739254453748,0.2045351,98248.0,98247.0,0.18414339]
[1739254453946,0.2065351,98248.0,98247.0,0.18414339]
[1739254454147,0.2065351,98248.0,98247.0,0.001]
[1739254471073,0.5673351,98248.0,98247.0,0.001]
[1739254471269,0.5817,98248.0,98243.0,0.18314339]
[1739254471473,0.2035433,98244.0,98243.0,0.18314339]
[1739254471671,0.2722233,98244.0,98243.0,0.18314339]
[1739254471972,0.2722233,98244.0,98243.0,0.15405811]
[1739254473281,0.2732233,98244.0,98243.0,0.15505811]
[1739254474166,0.2752233,98244.0,98243.0,0.15505811]
[1739254475384,0.2752233,98244.0,98243.0,0.001]
[1739254480479,0.2065433,98244.0,98243.0,0.001]
[1739254485479,0.2065433,98244.0,98242.0,0.04521777]
[1739254487190,0.003,98244.0,98243.0,0.2035454]
[1739254487378,0.003,98244.0,98243.0,0.2402454]
[1739254501493,0.003,98244.0,98243.0,0.48433823]
[1739254503208,0.003,98244.0,98243.0,0.44763823]
[1739254504596,0.003,98244.0,98243.0,0.24409283]
[1739254504796,0.0389,98244.0,98243.0,0.24409283]
[1739254505001,0.0744,98244.0,98243.0,0.24409283]
[1739254505604,0.0744,98244.0,98236.0,0.24409283]
[1739254506503,0.3608,98242.0,98236.0,0.24409283]
[1739254507207,0.2035578,98237.0,98236.0,0.24409283]
[1739254509305,0.002,98237.0,98226.0,0.0004069]
[1739254509606,0.2035838,98225.0,98223.0,0.36232676]
[1739254509806,0.0338,98224.0,98223.0,0.36232676]
[1739254512507,0.0358,98224.0,98223.0,0.36232676]
[1739254513006,0.0358,98224.0,98223.0,0.00152676]
[1739254514511,0.0699,98224.0,98223.0,0.00152676]
[1739254515011,0.002,98224.0,98223.0,0.00152676]
[1739254515210,0.002,98224.0,98223.0,0.36232676]
[1739254518108,0.002,98224.0,98223.0,1.08232676]
[1739254519017,0.002,98224.0,98223.0,1.0808]
[1739254520216,0.002,98224.0,98223.0,0.3608]
[1739254522017,0.00015267,98234.0,98230.0,0.2035705]
[1739254522221,0.00015267,98234.0,98232.0,0.3608]
[1739254522610,0.00015267,98234.0,98232.0,0.564368]
[1739254523314,0.00315267,98234.0,98232.0,0.564368]
[1739254525317,0.00315267,98234.0,98232.0,0.565368]
[1739254530618,0.00315267,98234.0,98233.0,0.01090473]
[1739254531510,0.00315267,98234.0,98233.0,0.25451236]
[1739254531911,0.00315267,98234.0,98233.0,0.25450762]
[1739254532218,0.00215267,98234.0,98233.0,0.25550762]
[1739254532516,0.00315267,98234.0,98233.0,0.25550762]
[1739254533314,0.01329021,98234.0,98233.0,0.25556127]
[1739254534723,0.01329021,98234.0,98233.0,0.001]
[1739254543729,0.01329021,98234.0,98233.0,0.01192573]
[1739254545628,0.01329021,98234.0,98233.0,0.001]
[1739254550228,0.2035806,98226.0,98225.0,3e-08]
[1739254550429,0.5643806,98226.0,98225.0,3e-08]
[1739254550631,0.8643806,98226.0,98225.0,3e-08]
[1739254551134,1.0822806,98226.0,98225.0,3e-08]
[1739254551433,0.2036013,98216.0,98215.0,0.24956525]
[1739254551640,0.8508613,98216.0,98215.0,0.24956525]
[1739254553734,0.8508613,98216.0,98200.0,0.3136333]
[1739254553735,0.2036166,98209.0,98203.0,0.00152729]
[1739254553937,0.3608,98206.0,98203.0,0.00152729]
[1739254554636,0.3608,98206.0,98205.0,0.2036241]
[1739254554937,0.00015267,98214.0,98209.0,0.2036154]
[1739254556944,0.06856,98213.0,98209.0,0.2036154]
[1739254557536,0.2721687,98213.0,98203.0,0.00152729]
[1739254557732,0.34817667,98213.0,98203.0,0.00152729]
[1739254559146,0.2036105,98212.0,98207.0,0.2036198]
[1739254561347,0.2046105,98212.0,98207.0,0.2036198]
[1739254561544,0.001,98212.0,98210.0,0.2036122]
[1739254562643,0.00015267,98214.0,98203.0,0.00152729]
[1739254562843,0.001,98212.0,98203.0,0.00152729]
[1739254563039,0.001,98212.0,98211.0,0.2036117]
[1739254564751,0.2036095,98213.0,98211.0,0.2036117]
[1739254565048,0.00115267,98214.0,98203.0,0.00152729]
[1739254565248,0.2036191,98208.0,98203.0,0.00152729]
[1739254566053,0.001,98212.0,98203.0,0.00152729]
[1739254566249,0.2036245,98205.0,98203.0,0.00152729]
[1739254566951,0.3608,98208.0,98200.0,0.11]
[1739254567252,0.2036325,98201.0,98200.0,0.11]
[1739254567843,0.0345,98207.0,98200.0,0.11]
[1739254568052,0.3618,98208.0,98200.0,0.11]
[1739254568354,0.203624,98206.0,98201.0,0.0717]
[1739254569844,0.06856,98205.0,98201.0,0.0717]
[1739254570441,0.01006348,98208.0,98201.0,0.0717]
[1739254570442,0.07862348,98208.0,98201.0,0.0717]
[1739254570742,0.06856,98208.0,98201.0,0.4325]
[1739254570944,0.001,98206.0,98201.0,0.0717]
[1739254571654,0.2731784,98208.0,98201.0,0.2753309]
[1739254572252,0.2046184,98208.0,98201.0,0.2753309]
[1739254572453,0.2046184,98208.0,98203.0,0.2036282]
[1739254572649,0.001,98208.0,98206.0,0.2036212]
[1739254572854,0.06856,98209.0,98206.0,0.2036212]
[1739254573947,0.06856,98209.0,98202.0,0.3608]
[1739254574254,0.06856,98209.0,98207.0,0.203619]
[1739254574453,0.01022123,98214.0,98213.0,0.2036076]
[1739254574764,0.00015267,98214.0,98213.0,0.2036076]
[1739254576258,0.00115267,98214.0,98213.0,0.2036076]
[1739254587456,0.00115267,98214.0,98213.0,0.2036076]
[1739254596061,0.00115267,98214.0,98213.0,0.5644076]
[1739254605867,0.00115267,98214.0,98213.0,0.2036076]
[1739254606075,0.00115267,98214.0,98213.0,0.5644076]
[1739254619877,0.00115267,98214.0,98213.0,0.80866877]
[1739254623980,0.00115267,98214.0,98213.0,0.5644076]
[1739254626074,0.01120939,98214.0,98213.0,0.5644076]
[1739254626277,0.00115267,98214.0,98213.0,0.5644076]
[1739254630481,0.00115267,98214.0,98213.0,0.74761223]
[1739254634277,0.00115267,98214.0,98213.0,1.46761223]
[1739254634478,0.00115267,98214.0,98213.0,1.2844076]
[1739254635183,0.00115267,98214.0,98213.0,0.5644076]
[1739254635687,0.15192846,98229.0,98213.0,0.3608]
[1739254635873,0.15192846,98229.0,98228.0,0.5643765]
[1739254636979,0.15592846,98229.0,98228.0,0.5643765]
[1739254637283,0.15692846,98229.0,98228.0,0.5643765]
[1739254638075,0.16392846,98229.0,98228.0,0.5643765]
[1739254639080,0.012,98229.0,98228.0,0.5643765]
[1739254660595,0.012,98229.0,98228.0,0.2035765]
[1739254660807,0.012,98229.0,98228.0,0.5643765]
[1739254661999,0.012,98229.0,98228.0,0.3608]
[1739254662505,0.0803,98229.0,98228.0,0.3608]
[1739254663599,0.2035765,98228.0,98226.0,0.18271001]
[1739254665196,0.2105765,98228.0,98226.0,0.18221001]
[1739254665700,0.2135765,98228.0,98226.0,0.18221001]
[1739254666709,0.2035847,98224.0,98223.0,0.3608]
[1739254668206,0.2085847,98224.0,98223.0,0.3608]
[1739254668806,0.2115847,98224.0,98223.0,0.3608]
[1739254670611,0.2035868,98223.0,98222.0,0.3608]
[1739254671900,0.2065868,98223.0,98222.0,0.3608]
[1739254672403,0.2105868,98223.0,98222.0,0.3608]
[1739254674310,0.22072999,98223.0,98222.0,0.3608]
[1739254684818,0.007,98223.0,98222.0,0.3608]
[1739254685019,0.007,98223.0,98222.0,0.3969]
[1739254698826,0.007,98223.0,98222.0,0.0361]
[1739254699026,0.007,98223.0,98222.0,0.7577]
[1739254705226,0.007,98223.0,98222.0,0.7216]
[1739254706833,0.007,98223.0,98222.0,0.96531305]
[1739254708742,0.007,98223.0,98222.0,0.60451305]
[1739254709841,0.007,98223.0,98222.0,0.3608]
[1739254720338,0.007,98223.0,98222.0,0.4288]
[1739254720940,0.007,98223.0,98222.0,0.3608]
[1739254721143,0.007,98223.0,98222.0,0.60488502]
[1739254724747,0.007,98223.0,98222.0,0.3608]
[1739254736141,0.007,98223.0,98222.0,0.3955]
[1739254736555,0.00993857,98235.0,98222.0,0.3955]
[1739254736851,0.20370895,98238.0,98235.0,0.2035616]
[1739254738253,0.20970895,98238.0,98235.0,0.2035616]
[1739254738555,0.20970895,98238.0,98236.0,0.2035593]
[1739254739757,0.21070895,98238.0,98236.0,0.2035593]
[1739254740054,0.23362008,98238.0,98236.0,0.2035593]
[1739254740655,0.23362008,98238.0,98236.0,0.2045593]
[1739254741549,0.22862008,98238.0,98236.0,0.2045593]
[1739254741965,0.22662008,98238.0,98236.0,0.2045593]
[1739254742148,0.22862008,98238.0,98236.0,0.2045593]
[1739254743158,0.21862008,98238.0,98236.0,0.2035593]
[1739254759668,0.15192846,98250.0,98235.0,0.3608]
[1739254759878,0.15192846,98250.0,98249.0,0.564333]
[1739254760760,0.15392846,98250.0,98249.0,0.564333]
[1739254761168,0.16417793,98250.0,98249.0,0.564333]
[1739254761570,0.17017793,98250.0,98249.0,0.564333]
[1739254762162,0.15992846,98250.0,98249.0,0.564333]
[1739254762471,0.15992846,98250.0,98249.0,0.565333]
[1739254762472,0.16992846,98250.0,98249.0,0.565333]
[1739254762873,0.018,98250.0,98249.0,0.565333]
[1739254764163,0.018,98250.0,98249.0,0.57530133]
[1739254769081,0.018,98250.0,98249.0,0.565333]
[1739254774373,0.018,98250.0,98249.0,0.3618]
[1739254776079,0.0281483,98250.0,98249.0,0.3618]
[1739254778881,0.0281483,98250.0,98249.0,0.001]
[1739254786586,0.0281483,98250.0,98249.0,0.204533]
[1739254787185,0.0281483,98250.0,98249.0,0.565333]
[1739254787384,0.018,98250.0,98249.0,0.565333]
[1739254790996,0.018,98250.0,98249.0,0.81948058]
[1739254793294,0.00015275,98259.0,98258.0,0.2035144]
[1739254793489,0.00015275,98259.0,98258.0,0.5643144]
[1739254794487,0.01515275,98259.0,98258.0,0.5653144]
[1739254794998,0.00152699,98270.0,98269.0,0.2034916]
[1739254795191,0.01158983,98270.0,98269.0,0.5642916]
[1739254795386,0.00152699,98270.0,98269.0,0.5642916]
[1739254795991,0.00852699,98270.0,98269.0,0.5642916]
[1739254797298,0.00852699,98270.0,98269.0,0.5652916]
[1739254799300,0.007,98270.0,98269.0,0.5652916]
[1739254801306,0.007,98270.0,98269.0,0.5752679]
[1739254804698,0.01029761,98279.0,98278.0,0.2034729]
[1739254804904,0.01029761,98279.0,98278.0,0.3608]
[1739254805606,0.01029761,98279.0,98278.0,0.564273]
[1739254806309,0.01729761,98279.0,98278.0,0.565273]
[1739254806902,0.02229761,98279.0,98278.0,0.566273]
[1739254808011,0.01529761,98279.0,98278.0,0.564273]
[1739254808811,0.00515267,98279.0,98278.0,0.564273]
[1739254811910,0.00515267,98279.0,98278.0,0.57527449]
[1739254812109,0.20496718,98294.0,98278.0,0.37180121]
[1739254812110,0.00152648,98294.0,98278.0,0.37180121]
[1739254812302,0.2179,98307.0,98301.0,0.2034246]
[1739254812498,0.00996409,98311.0,98306.0,0.3608]
[1739254814212,0.15592846,98308.0,98306.0,0.3608]
[1739254814811,0.004,98308.0,98306.0,0.3608]
[1739254815604,0.005,98308.0,98306.0,0.3608]
[1739254816903,0.005,98308.0,98307.0,0.2034129]
[1739254817903,0.001,98308.0,98307.0,0.2034129]
[1739254820920,0.001,98308.0,98306.0,0.3608]
[1739254823418,0.001,98308.0,98307.0,0.2034129]
[1739254825907,0.001,98308.0,98307.0,0.21452203]
[1739254827520,0.001,98308.0,98307.0,0.2034129]
[1739254828217,0.001,98308.0,98307.0,0.21459313]
[1739254829815,0.00015258,98317.0,98316.0,0.2033943]
[1739254830020,0.00015258,98317.0,98316.0,0.5641943]
[1739254832005,0.00015258,98317.0,98316.0,0.5661943]
[1739254833115,0.00015258,98317.0,98316.0,0.57735143]
[1739254833315,0.04989369,98330.0,98316.0,0.37395749]
[1739254833518,0.2033597,98333.0,98329.0,0.564166]
[1739254836010,0.2033597,98333.0,98329.0,0.565166]
[1739254836218,0.2033597,98333.0,98329.0,0.566166]
[1739254836620,0.2033597,98333.0,98329.0,0.3628]
[1739254836922,0.2033597,98333.0,98330.0,0.203364]
[1739254837821,0.2033597,98333.0,98331.0,0.2033622]
[1739254838206,0.04503169,98336.0,98334.0,0.2033563]
[1739254839614,0.04503169,98336.0,98334.0,0.2043563]
[1739254840118,0.04503169,98336.0,98334.0,0.2053563]
[1739254842735,0.04503169,98336.0,98335.0,0.01134652]
[1739254843219,0.04503169,98336.0,98334.0,0.2053563]
[1739254844619,0.04503169,98336.0,98335.0,0.001]
[1739254845326,0.04503169,98336.0,98334.0,0.2053563]
[1739254845520,0.04503169,98336.0,98335.0,0.001]
[1739254845924,0.04503169,98336.0,98335.0,0.002]
[1739254846120,0.04503169,98336.0,98335.0,0.01321415]
[1739254846325,0.04503169,98336.0,98335.0,0.01221415]
[1739254846628,0.04503169,98336.0,98335.0,0.01221493]
[1739254847420,0.04503169,98336.0,98335.0,0.01321493]
[1739254850629,0.04503169,98336.0,98335.0,0.002]
[1739254854824,0.00993169,98336.0,98335.0,0.002]
[1739254855023,0.2033516,98337.0,98336.0,0.203353]
[1739254856023,0.2136848,98337.0,98336.0,0.203353]
[1739254856231,0.2136848,98337.0,98336.0,0.204353]
[1739254856431,0.0103332,98337.0,98336.0,0.205353]
[1739254856634,0.00015258,98341.0,98339.0,0.2033451]
[1739254856833,0.20349708,98341.0,98339.0,0.2033451]
[1739254857424,0.21362824,98341.0,98339.0,0.2033451]
[1739254858532,0.21362824,98341.0,98339.0,0.2043451]
[1739254858723,0.21362824,98341.0,98339.0,0.2053451]
[1739254860326,0.21362824,98341.0,98339.0,0.002]
[1739254860726,0.21362824,98341.0,98340.0,0.01121893]
[1739254861626,0.21362824,98341.0,98340.0,0.01122057]
[1739254862527,0.28182824,98341.0,98340.0,0.01214744]
[1739254863124,0.28182824,98341.0,98340.0,0.001]
[1739254863331,0.4337567,98341.0,98340.0,0.001]
[1739254863738,0.4337567,98341.0,98340.0,0.002]
[1739254867742,0.7945567,98341.0,98340.0,0.002]
[1739254868042,0.64262824,98341.0,98340.0,0.002]
[1739254871644,0.86052824,98341.0,98340.0,0.002]
[1739254883238,0.86048824,98341.0,98340.0,0.002]
[1739254886352,0.86048824,98341.0,98340.0,0.001]
[1739254886752,0.65714374,98341.0,98327.0,0.2033711]
[1739254886951,0.2033662,98330.0,98328.0,0.02959932]
[1739254887154,0.2033662,98330.0,98329.0,0.02959932]
[1739254887954,0.2033662,98330.0,98329.0,0.01138409]
[1739254888845,0.2033662,98330.0,98329.0,0.01438409]
[1739254889247,0.04989369,98340.0,98329.0,0.03272773]
[1739254889551,0.2033488,98338.0,98335.0,0.2033541]
[1739254889759,0.2033488,98338.0,98336.0,0.0804623]
[1739254890053,0.2033488,98338.0,98337.0,0.0114623]
[1739254890859,0.35581977,98338.0,98337.0,0.0114623]
[1739254894954,0.35581977,98338.0,98337.0,0.02993485]
[1739254895150,0.35581977,98338.0,98337.0,0.0114623]
[1739254895350,0.2033488,98338.0,98337.0,0.0114623]
[1739254895853,0.2033488,98338.0,98337.0,0.029934]
[1739254896058,0.2033488,98338.0,98337.0,0.0114623]
[1739254896755,0.01028374,98341.0,98337.0,0.0114623]
[1739254896960,0.01028374,98341.0,98340.0,0.2033447]
[1739254897169,0.01028374,98341.0,98340.0,0.214807]
[1739254899753,0.01028374,98341.0,98340.0,0.23327459]
[1739254901055,0.01028374,98341.0,98340.0,0.214807]
[1739254901960,0.01028374,98341.0,98340.0,0.2147909]
[1739254911069,0.01028374,98341.0,98340.0,0.21459109]
[1739254912673,0.01028374,98341.0,98340.0,0.21462644]
[1739254919573,0.00015258,98341.0,98340.0,0.2146701]
[1739254920568,0.00015258,98341.0,98340.0,0.23297387]
[1739254920768,0.00015258,98341.0,98340.0,0.26987387]
[1739254922377,0.15247097,98346.0,98345.0,0.2033344]
[1739254922570,0.15247097,98346.0,98345.0,0.23280092]
[1739254924171,0.16264004,98346.0,98345.0,0.2146598]
[1739254924378,0.01016907,98346.0,98345.0,0.21459966]
[1739254924579,0.203316,98354.0,98345.0,0.01126526]
[1739254924881,0.203316,98354.0,98349.0,0.3608]
[1739254925067,0.203316,98354.0,98350.0,0.01126526]
[1739254925272,0.203316,98354.0,98349.0,0.5641255]
[1739254925474,0.203316,98354.0,98350.0,0.01116629]
[1739254925668,0.21345462,98354.0,98349.0,0.5649255]
[1739254925878,0.21345462,98354.0,98350.0,0.01116622]
[1739254926181,0.21345462,98354.0,98351.0,0.011212]
[1739254926381,0.21345462,98354.0,98349.0,0.5649255]
[1739254926581,0.21345462,98354.0,98350.0,0.01121084]
[1739254926782,0.21345462,98354.0,98350.0,0.001]
[1739254927278,0.203322,98351.0,98350.0,0.001]
[1739254928388,0.564122,98351.0,98350.0,0.002]
[1739254928679,0.2033426,98341.0,98340.0,0.18486606]
[1739254928984,0.5641426,98341.0,98340.0,0.12384088]
[1739254929679,0.203355,98335.0,98334.0,0.27296437]
[1739254929870,0.2033695,98328.0,98327.0,0.2445193]
[1739254930471,0.2714495,98328.0,98327.0,0.2445193]
[1739254930877,0.4893495,98328.0,98327.0,0.2445193]
[1739254931077,0.4893495,98328.0,98327.0,0.2429693]
[1739254931280,0.4893495,98328.0,98327.0,3e-08]
[1739254931684,0.4212695,98328.0,98327.0,3e-08]
[1739254931873,0.4893895,98328.0,98327.0,3e-08]
[1739254932076,0.4893895,98328.0,98327.0,0.00400003]
[1739254932377,0.4913895,98328.0,98327.0,0.00400003]
[1739254932773,0.33848166,98328.0,98318.0,0.00015258]
[1739254932978,0.5641881,98319.0,98318.0,0.00015258]
[1739254933977,0.7820881,98319.0,98318.0,0.00515258]
[1739254935586,0.7820881,98319.0,98318.0,0.00615258]
[1739254936180,0.8502081,98319.0,98318.0,0.00615258]
[1739254936683,0.4894081,98319.0,98318.0,0.00615258]
[1739254937677,0.2179,98319.0,98318.0,0.00615258]
[1739254939888,0.2033872,98320.0,98318.0,0.00615258]
[1739254942982,0.2033872,98320.0,98319.0,0.0342]
[1739254944676,0.2033872,98320.0,98319.0,0.0392]
[1739254953191,0.2033872,98320.0,98319.0,0.0742]
[1739254956293,0.2033872,98320.0,98319.0,0.08576495]
[1739254959995,0.2033741,98326.0,98319.0,0.08576495]
[1739254960302,0.2033741,98326.0,98320.0,0.01156495]
[1739254960496,0.15187605,98327.0,98321.0,0.01156495]
[1739254960690,0.203376,98325.0,98323.0,0.2033794]
[1739254960892,0.203376,98325.0,98324.0,0.04816495]
[1739254962403,0.204376,98325.0,98324.0,0.04810433]
[1739254963006,0.204376,98325.0,98324.0,0.04910433]
[1739254964203,0.204376,98325.0,98324.0,0.04907813]
[1739254968609,0.35625205,98325.0,98324.0,0.04907813]
[1739254969208,0.35625205,98325.0,98324.0,0.0376]
[1739254970508,0.35625205,98325.0,98324.0,0.04904714]
[1739254971608,0.35625205,98325.0,98324.0,0.0376]
[1739254972501,0.25383386,98325.0,98324.0,0.0376]
[1739254973709,0.25383386,98325.0,98324.0,0.001]
[1739254975701,0.61463386,98325.0,98324.0,0.001]
[1739254976813,0.69696754,98325.0,98324.0,0.001]
[1739254983528,0.61463386,98325.0,98324.0,0.001]
[1739254986825,0.25383386,98325.0,98324.0,0.001]
[1739254987025,0.40082533,98327.0,98324.0,0.01236528]
[1739254987220,0.40082533,98327.0,98325.0,0.57554098]
[1739254987523,0.18292533,98327.0,98326.0,0.01136528]
[1739254987730,0.18292533,98327.0,98325.0,0.5649757]
[1739254988029,0.18292533,98327.0,98326.0,0.0113214]
[1739254988325,0.18292533,98327.0,98325.0,0.5649757]
[1739254988513,0.18392533,98327.0,98325.0,0.5641757]
[1739254989123,0.38729713,98327.0,98325.0,0.3608]
[1739254990522,0.38729713,98327.0,98321.0,0.2033837]
[1739254990523,0.2033784,98324.0,98321.0,0.2033837]
[1739254992721,0.2033784,98324.0,98321.0,0.2063837]
[1739254993228,0.23272438,98331.0,98321.0,0.2063837]
[1739254993528,0.2033811,98323.0,98321.0,0.2063837]
[1739254993732,0.2033811,98323.0,98321.0,0.003]
[1739254994432,0.2033811,98323.0,98319.0,0.0692]
[1739254994632,0.2033811,98323.0,98321.0,0.003]
[1739254995232,0.15236183,98322.0,98321.0,0.003]
[1739254999632,0.2033811,98323.0,98321.0,0.003]
[1739255001729,0.2033811,98323.0,98322.0,0.0114384]
[1739255003240,0.2033811,98323.0,98322.0,0.01143447]
[1739255004427,0.2033811,98323.0,98322.0,0.01443447]
[1739255005231,0.2033811,98323.0,98322.0,0.0144413]
[1739255006444,0.35573574,98323.0,98322.0,0.0144413]
[1739255007840,0.35573574,98323.0,98322.0,0.003]
[1739255008540,0.15235464,98323.0,98322.0,0.003]
[1739255009235,0.15235464,98323.0,98322.0,0.01447381]
[1739255009540,0.203372,98327.0,98322.0,0.01447381]
[1739255009742,0.203372,98327.0,98322.0,0.003]
[1739255010130,0.203374,98326.0,98322.0,0.003]
[1739255011640,0.203374,98326.0,98323.0,0.01146348]
[1739255011840,0.203374,98326.0,98322.0,0.003]
[1739255012041,0.203374,98326.0,98323.0,0.01146639]
[1739255012243,0.203374,98326.0,98322.0,0.003]
[1739255012437,0.203374,98326.0,98323.0,0.01146683]
[1739255012643,0.203374,98326.0,98322.0,0.003]
[1739255012942,0.203374,98326.0,98323.0,0.01146681]
[1739255013143,0.203374,98326.0,98324.0,0.01146681]
[1739255013338,0.203374,98326.0,98323.0,0.002]
[1739255013551,0.203374,98326.0,98324.0,0.01148177]
[1739255013745,0.203374,98326.0,98325.0,0.01148177]
[1739255016340,0.203374,98326.0,98325.0,0.01248177]
[1739255017839,0.203374,98326.0,98325.0,0.01248815]
[1739255018041,0.00015258,98333.0,98325.0,0.44128815]
[1739255018251,0.64147975,98358.0,98332.0,0.3608]
[1739255018550,0.17487989,98356.0,98355.0,0.2033137]
[1739255018851,0.17487989,98356.0,98355.0,0.60663528]
[1739255019249,0.17487989,98356.0,98355.0,0.58829843]
[1739255019449,0.64143975,98358.0,98355.0,0.38498473]
[1739255019654,0.64091974,98358.0,98357.0,0.2033095]
[1739255019955,0.64091974,98358.0,98357.0,0.21478137]
[1739255021247,0.64191974,98358.0,98357.0,0.21578137]
[1739255021545,0.001,98358.0,98357.0,0.21578137]
[1739255021851,0.001,98358.0,98357.0,0.27988137]
[1739255022046,0.001,98358.0,98357.0,0.2684095]
[1739255022947,0.001,98358.0,98357.0,0.2694095]
[1739255027444,0.00015258,98365.0,98364.0,0.2032951]
[1739255027643,0.00015258,98365.0,98364.0,0.5640951]
[1739255028851,0.00015258,98365.0,98364.0,0.5650951]
[1739255029545,0.00015258,98365.0,98364.0,0.5660951]
[1739255036658,0.00015258,98365.0,98364.0,0.2052951]
[1739255036858,0.00015258,98365.0,98364.0,0.5660951]
[1739255038068,0.0325,98379.0,98377.0,0.2032674]
[1739255038253,0.3608,98384.0,98377.0,0.2032674]
[1739255038458,0.3608,98384.0,98377.0,0.2032671]
[1739255038653,0.3608,98384.0,98364.0,0.3628]
[1739255038862,0.3608,98384.0,98379.0,0.2032632]
[1739255039158,0.3608,98384.0,98372.0,0.0001525]
[1739255039349,0.3608,98384.0,98380.0,0.2032609]
[1739255041961,0.3608,98384.0,98380.0,0.2042609]
[1739255042358,0.2032523,98385.0,98380.0,0.2052609]
[1739255043367,0.2032523,98385.0,98380.0,0.2042609]
[1739255043575,0.2032523,98385.0,98380.0,0.2052609]
[1739255044156,0.4259,98388.0,98382.0,0.2032575]
[1739255045455,0.4259,98388.0,98382.0,0.2042575]
[1739255045456,0.2032489,98387.0,98382.0,0.2042575]
[1739255045658,0.20325,98386.0,98382.0,0.2052575]
[1739255048265,0.20325,98386.0,98382.0,0.2042575]
[1739255048461,0.20325,98386.0,98382.0,0.2052575]
[1739255048663,0.20325,98386.0,98382.0,0.2042575]
[1739255048863,0.20325,98386.0,98382.0,0.2052575]
[1739255049859,0.20325,98386.0,98383.0,0.01117347]
[1739255050163,0.20325,98386.0,98382.0,0.2052575]
[1739255050374,0.20325,98386.0,98383.0,0.01114759]
[1739255050668,0.20325,98386.0,98382.0,0.2052575]
[1739255050868,0.20325,98386.0,98383.0,0.01114759]
[1739255051074,0.20325,98386.0,98382.0,0.2052575]
[1739255051268,0.20325,98386.0,98383.0,0.01116681]
[1739255051471,0.20325,98386.0,98382.0,0.2052575]
[1739255051670,0.20325,98386.0,98383.0,0.01116637]
[1739255051972,0.4259,98388.0,98383.0,0.01116637]
[1739255051973,0.4259,98388.0,98386.0,0.2032487]
[1739255052873,0.0651,98388.0,98383.0,0.001]
[1739255053171,0.20325,98386.0,98383.0,0.001]
[1739255053471,0.20325,98386.0,98382.0,0.001]
[1739255053877,0.20325,98386.0,98380.0,0.2032611]
[1739255054259,0.0651,98388.0,98386.0,0.2032493]
[1739255054474,0.0323,98389.0,98388.0,0.2032455]
[1739255054871,0.00010015,98391.0,98389.0,0.2032421]
[1739255056277,0.00010015,98391.0,98389.0,0.2042421]
[1739255056469,0.00010015,98391.0,98389.0,0.2052421]
[1739255059174,0.00010015,98391.0,98390.0,0.01149014]
[1739255059374,0.00010015,98391.0,98390.0,0.0114891]
[1739255060175,0.00010015,98391.0,98390.0,0.0124891]
[1739255061070,0.00010015,98391.0,98390.0,0.03134998]
[1739255061868,0.00010015,98391.0,98390.0,0.03234998]
[1739255064077,0.00010015,98391.0,98390.0,0.002]
[1739255064285,0.00010015,98391.0,98390.0,0.03330766]
[1739255066177,0.00010015,98391.0,98390.0,0.01396641]
[1739255066382,0.00010015,98391.0,98390.0,0.03310138]
[1739255068190,0.00010015,98391.0,98390.0,0.01396641]
[1739255069285,0.00010015,98391.0,98390.0,0.01408602]
[1739255071288,0.00010015,98391.0,98390.0,0.03381511]
[1739255075096,0.00010015,98391.0,98390.0,0.03281511]
[1739255075284,0.00010015,98391.0,98390.0,0.03381511]
[1739255079693,0.00010015,98391.0,98390.0,0.03379962]
[1739255082595,0.00010015,98391.0,98390.0,0.002]
[1739255082792,0.00010015,98391.0,98390.0,0.02187121]
[1739255083196,0.00010015,98391.0,98390.0,0.002]
[1739255083692,0.00010015,98391.0,98390.0,0.06052747]
[1739255085199,0.00010015,98391.0,98390.0,0.03508]
[1739255085390,0.00010015,98391.0,98390.0,0.06011274]
[1739255085787,0.00010015,98391.0,98390.0,0.04748011]
[1739255085988,0.00010015,98391.0,98390.0,0.02221296]
[1739255086183,0.00010015,98391.0,98390.0,0.002]
[1739255086383,0.00010015,98391.0,98390.0,0.06011653]
[1739255086690,0.00010015,98391.0,98390.0,0.04480406]
[1739255086891,0.00010015,98391.0,98390.0,0.2887455]
[1739255089595,0.00010015,98391.0,98390.0,0.31337357]
[1739255089799,0.00010015,98391.0,98390.0,0.2887455]
[1739255090096,0.00010015,98391.0,98390.0,0.28770789]
[1739255090307,0.00010015,98391.0,98390.0,0.04376645]
[1739255090698,0.00010015,98391.0,98390.0,0.06825016]
[1739255090999,0.00010015,98391.0,98390.0,0.06725016]
[1739255091703,0.00010015,98391.0,98390.0,0.04276645]
[1739255091906,0.00010015,98391.0,98390.0,0.03181012]
[1739255093392,0.00010015,98391.0,98390.0,0.01223438]
[1739255093393,0.36090015,98391.0,98390.0,0.01223438]
[1739255093597,0.2032496,98386.0,98385.0,0.30484084]
[1739255093803,0.0331,98390.0,98380.0,0.36446695]
[1739255094003,0.3608,98381.0,98380.0,0.36446695]
[1739255094597,0.3608,98381.0,98380.0,0.3763039]
[1739255094802,0.3608,98381.0,98380.0,0.37619579]
[1739255095191,0.3608,98381.0,98380.0,0.36446695]